Cogmind - Beta 14 @@@ ROGUE MODE // 2024.09.08 @ 04:08:34 Player: Tottery Result: Destroyed by G-34 Mercenary with Small Laser Performance ------------- Evolutions (0) 0 Regions Visited (1) 200 Robots Destroyed (14) 70 Value Destroyed (295) 295 Prototype IDs (0) 0 Alien Tech Used (0) 0 Bonus (0) 0 TOTAL SCORE: 565 Bonus ------- None Cogmind --------- Core Integrity 0/250 Matter 300/300 Energy 96/100 System Corruption 0% Temperature Cool (6) Movement Core (100) Ox1 Location -10/Materials Parts ------- > --- POWER (1) -------- (None) > --- PROPULSION (2) --- (None) > --- UTILITY (2) ------ Sensor Array Weapon Shielding > --- WEAPON (2) ------- Mining Claw > --- INVENTORY (5) ---- Ion Engine Flight Unit Heat Sink Heat Sink Mining Claw Peak State ------------ > --- POWER ------------ Ion Engine > --- PROPULSION ------- Aluminum Leg Aluminum Leg > --- UTILITY ---------- Small Storage Unit Tractor Beam > --- WEAPON ----------- EM Pulse Gun Assault Rifle > --- INVENTORY -------- Light Ion Engine [Rating: 7] Favorites ----------- Power Ion Engine Engine Ion Engine Propulsion Aluminum Leg Leg Aluminum Leg Flight Unit Flight Unit Utility Small Storage Unit Device Tractor Beam Storage Small Storage Unit Protection Weapon Shielding Weapon Assault Rifle Energy Gun Medium Laser Ballistic Gun Assault Rifle Slashing Weapon Mining Claw Build | -11 -10 ------- Run | Yrd Mat Slots Evolved . | . . Power . | . . Propulsion . | . . Utility . | . . Weapon . | . . Parts Attached 22 | 7 15 Power 3 | 1 2 Engine 3 | 1 2 Core . | . . Reactor . | . . Propulsion 8 | 2 6 Treads . | . . Leg 2 | 2 . Wheel . | . . Hover . | . . Flight 6 | . 6 Utility 5 | 2 3 Device 3 | 1 2 Storage 1 | 1 . Processor . | . . Hackware . | . . Protection 1 | . 1 Artifact . | . . Weapon 6 | 2 4 Energy Gun 3 | 1 2 Energy Cannon . | . . Ballistic Gun 1 | 1 . Ballistic Cannon . | . . Launcher . | . . Special Weapon . | . . Impact Weapon . | . . Slashing Weapon 2 | . 2 Piercing Weapon . | . . Special Melee Weapon . | . . Unidentified Prototypes . | . . Parts Lost 8 | . 8 Power 1 | . 1 Propulsion 5 | . 5 Utility . | . . Weapon 2 | . 2 Highest Loss Streak 3 | . 3 To Critical Strikes . | . . Average Slot Usage (%) 86 | . 86 Engine 10 | . 10 Leg 14 | . 14 Flight 11 | . 11 Device 11 | . 11 Storage 7 | . 7 Protection 6 | . 6 Energy Gun 7 | . 7 Ballistic Gun 9 | . 9 Slashing Weapon 6 | . 6 Peak Build Rating 7 | 7 7 Average Rating 5 | 5 6 On Entrance 3 | . 7 Naked Turns . | . . Heaviest Build 15 | 15 15 Greatest Support 20 | 20 20 Greatest Overweight (x) 3 | 1 3 Average Overweight (x) . | . . Largest Inventory Capacity 8 | 8 8 Average Capacity 6 | 7 6 Most Carried 8 | 1 8 Average Carried 4 | . 4 Final Capacity 8 | 8 5 Final Carried 5 | 1 5 Class Distribution -------------------- 100% | Mutant Dominant Class ---------------- Mutant | -10/Materials Resources | -11 -10 ----------- Run | Yrd Mat Matter Collected 481 | 273 208 Remotely 133 | 88 45 Salvage Created 516 | 86 430 Parts 22 | 2 20 Haulers Intercepted . | . . Recyclers Shooed 2 | . 2 Parts Field Recycled . | . . Retrieved Matter . | . . Parts Self-Destructed . | . . Prevented . | . . Kills | -11 -10 ------- Run | Yrd Mat Combat Hostiles Destroyed 11 | . 11 Melee 3 | . 3 Guns 7 | . 7 AOE 1 | . 1 Classes Destroyed 4 | 1 3 Recycler 2 | 1 1 Watcher 1 | . 1 Swarmer 5 | . 5 Grunt 6 | . 6 Best Kill Streak 4 | 1 4 Combat Bots Only 4 | . 4 Max Kills in Single Turn 1 | 1 1 Gunslinging . | . . Exploded 1 | . 1 Melee 1 | . 1 Uniques/NPCs Destroyed . | . . Combat | -11 -10 -------- Run | Yrd Mat Hostile Shots Fired 84 | . 84 Missed 20 | . 20 Damage Taken 762 | . 762 Core 254 | . 254 Absorbed by Shields . | . . Redirected to Shielding 44 | . 44 Core Remaining (%) 100 | 100 . Volleys Fired 32 | 1 31 Largest 2 | 2 2 Hottest 90 | 60 90 Shots Fired 61 | 2 59 Gun 61 | 2 59 Cannon . | . . Launcher . | . . Special . | . . Kinetic 27 | 1 26 Thermal 25 | . 25 Explosive . | . . Electromagnetic 9 | 1 8 Robot Hit Streak 10 | 2 10 Robot Miss Streak 2 | . 2 Penetration Max . | . . Secondary Targets . | . . Shots Hit Robots 54 | 2 52 Core Hits 21 | 2 19 Critical Kills . | . . Critical Parts Destroyed . | . . Critical Strikes . | . . Melee Attacks 24 | . 24 Impact . | . . Slashing 24 | . 24 Piercing . | . . Sneak Attacks . | . . Combat Hostiles . | . . Follow-up Attacks . | . . Damage Inflicted 889 | 23 866 Guns 510 | 23 487 Cannons . | . . Explosions 21 | . 21 Melee 358 | . 358 Ramming . | . . Kinetic 231 | 11 220 Thermal 217 | . 217 Explosive . | . . Electromagnetic 83 | 12 71 Impact . | . . Slashing 358 | . 358 Piercing . | . . Highest Corruption . | . . Average Corruption . | . . Corruption Purged . | . . Corruption Blocked . | . . Overload Shots . | . . Overflow Damage 3 | . 3 Projectiles . | . . Explosions 2 | . 2 Melee 1 | . 1 Knockbacks . | . . Impact . | . . Kinetic . | . . Secondary . | . . Self-Inflicted Damage 36 | . 36 Shots 1 | . 1 Rammed . | . . Targets Rammed . | . . Kicked . | . . Crushed . | . . Highest Temperature 196 | . 196 Average Temperature 55 | . 55 Received Heat Transfer 333 | . 333 Siege Activations . | . . Robots Corrupted . | . . Combat Hostiles . | . . Parts Fried . | . . Impact Corruptions . | . . Robots Melted . | . . Combat Hostiles . | . . Parts Melted 2 | . 2 Heat Transferred 606 | . 606 Parts Sabotaged . | . . Parts Stolen . | . . Parts Stripped . | . . Power Chain Reactions 1 | . 1 Alert | -11 -10 ------- Run | Yrd Mat Peak Influence 208 | 5 208 Initial 3 | . 3 Average 67 | 2 75 Maximum Alert Level 1 | . 1 Low Security (%) 91 | 100 90 Level 1 8 | . 9 Level 2 . | . . Level 3 . | . . Level 4 . | . . Level 5 . | . . High Security . | . . Max Security . | . . Squads Dispatched 2 | . 2 Investigation 1 | . 1 Extermination . | . . Reinforcement 1 | . 1 Assault . | . . Garrison . | . . Intercept . | . . Searches Triggered . | . . Construction Impeded . | . . Haulers Reinforced . | . . Active Scanning Responses . | . . Cargo Convoy Interrupts . | . . Stealth | -11 -10 --------- Run | Yrd Mat Distress Signals 2 | . 2 Communications Jammed . | . . Distress Signals . | . . Times Spotted 21 | . 21 Peak Tracking Total 4 | . 4 Tactical Retreats 2 | . 2 Traps | -11 -10 ------- Run | Yrd Mat Traps Triggered 2 | . 2 Indirectly . | . . Trap Hack Attempts . | . . Triggered . | . . Disarmed . | . . Reprogrammed . | . . Reused . | . . Traps Extracted . | . . Installed . | . . Triggered . | . . Machines | -11 -10 ---------- Run | Yrd Mat Machines Disabled . | . . Max in Single Turn . | . . Machines Repaired . | . . Machines Dismantled . | . . Machines Sabotaged . | . . Overloaded Fab Kills . | . . Hacking | -11 -10 --------- Run | Yrd Mat Machines Accessed 4 | . 4 Terminals 3 | . 3 Fabricators . | . . Repair Stations . | . . Recycling Units 1 | . 1 Scanalyzers . | . . Garrison Access . | . . Total Hacks 10 | . 10 Successful 5 | . 5 Failed 5 | . 5 Catastrophic . | . . Database Lockouts . | . . Manual 5 | . 5 Terminals 8 | . 8 Fabricators . | . . Repair Stations . | . . Recycling Units 2 | . 2 Scanalyzers . | . . Garrison Access . | . . Terminal Hacks 3 | . 3 Record 1 | . 1 Recycling Unit Index 1 | . 1 Locate Traps 1 | . 1 Fabricator Hacks . | . . Repair Station Hacks . | . . Recycling Unit Hacks 2 | . 2 Report Inventory 1 | . 1 Retrieve Components 1 | . 1 Scanalyzer . | . . Garrison Access Hacks . | . . Unauthorized Hacks . | . . Terminals . | . . Fabricators . | . . Repair Stations . | . . Recycling Units . | . . Scanalyzers . | . . Garrison Access . | . . Data Cores Recovered . | . . Used . | . . Hacking Detections 2 | . 2 Full Trace Events 1 | . 1 Feedback Events . | . . Feedback Blocked . | . . Robot Schematics Acquired . | . . Robots Built . | . . Authchips . | . . Time . | . . Total Robot Build Rating . | . . Part Schematics Acquired . | . . Parts Built . | . . Authchips . | . . Time . | . . Total Part Build Rating . | . . Parts Repaired . | . . Time . | . . Parts Recycled . | . . Recycled Matter . | . . Retrieved Matter . | . . Retrieved Components 2 | . 2 Parts Scanalyzed . | . . Part Schematics Acquired . | . . Parts Damaged . | . . Bothacking | -11 -10 ------------ Run | Yrd Mat Used RIF Installer . | . . Robots Hacked . | . . Non-combat . | . . Combat . | . . Robot Hacks Applied . | . . Relay Couplers Released . | . . Fabnet Peak Effective % . | . . Robots Rewired . | . . Allies Hacked . | . . Hacks Repelled . | . . Allies | -11 -10 -------- Run | Yrd Mat Total Allies . | . . Largest Group . | . . Highest-Rated Group . | . . Highest-Rated Ally . | . . Total Orders . | . . Ally Attacks . | . . Total Damage . | . . Kills . | . . Allies Corrupted . | . . Allies Melted . | . . Intel | -11 -10 ------- Run | Yrd Mat Robot Analysis Total . | . . Derelict Logs Recovered . | . . Drone Launches . | . . Drone Recoveries . | . . Exploration | -11 -10 ------------- Run | Yrd Mat Turns Passed 722 | 79 643 Spaces Moved 606 | 52 554 Core 19 | 12 7 Treads . | . . Legs 262 | 40 222 Wheels . | . . Hover . | . . Flight 325 | . 325 Fastest Speed 37 | 50 37 Average Speed 79 | 119 75 Slowest Speed 290 | 190 290 Overloaded Moves . | . . Propulsion Burnouts . | . . Robots Hopped . | . . Cave-ins Triggered . | . . Exploration Rate (%) 41 | 4 79 Regions Visited 1 Branch Regions . Pre-discovered Areas . | . . Known Exits Taken . | . . Unknown Exits Taken 1 | 1 . Scrap Searched . | . . Spaces Dug . | . . Terrain Destroyed 5 | . 5 Melee . | . . Projectile . | . . AOE 5 | . 5 Terrain Rammed . | . . Walls Destroyed . | . . Machines Disabled . | . . Actions | -11 -10 --------- Run | Yrd Mat Total 743 | 63 680 Wait 32 | 3 29 Move 605 | 51 554 Hop . | . . Pick Up 14 | 1 13 Fast Attach 15 | 7 8 Attach 5 | . 5 Detach 3 | . 3 Swap 2 | . 2 Drop 12 | . 12 Fire 32 | 1 31 Melee 23 | . 23 Ram . | . . Kick . | . . Crush . | . . Escape Stasis . | . . Rewire . | . . Trap . | . . Miscellaneous . | . . Route ------- -11/Scrapyard -10/Materials (discovered 1 exit: [*Mat]) History --------- Turn | Location | Event 5 | -11/Scrapyard | Discovered new exit (range 15) 80 | -11/Scrapyard | Entered Materials 310 | -10/Materials | Build established: Mutant 361 | -10/Materials | Discovered new exit (range 4) 697 | -10/Materials | Core integrity fell below 50% 716 | -10/Materials | Core integrity fell below 20% 723 | -10/Materials | Destroyed by G-34 Mercenary with Small Laser Last Messages --------------- 1x Alarm Trap Map updated. 00698_ R-06 Scavenger inserts Tractor Beam into recycling unit. 00699_ Recycling unit begins recycling process. 00699_ G-34 Mercenary Heat Sink ripped off. 00701_ R-06 Scavenger inserts Assault Rifle into recycling unit. 00704_ R-06 Scavenger inserts Ion Engine into recycling unit. 00705_ Recycling unit begins recycling process. 00706_ Recycling unit begins matter transfer process. 00707_ R-06 Scavenger inserts Targeting Computer into recycling unit. 00708_ Flight Unit destroyed. 00721_ G-34 Mercenary heat damages Aluminum Leg. 00722_ Mining Claw destroyed. 00723_ Sml. Laser melted. 00723_ G-34 Mercenary destroyed. Map ----- +----------------------------------------------------+ | """ #????### #?????????????????????????? | | #????# + "T" #?????????????????????????? | | ###+######????# # #?????????????????????????? | | # ########## # #???????????????????#####?? | | + #???????????????????# ! ? | | ##### # #???????????????????# ? | | # ###+######+########????????#####??????# """ | | ## =## ^ #????????????? #??????# """ | | ?#*%## """ """ #????????????? #??????# """ | | ?# [## """ """ #????????????? #??????# | | ?# ## """ """ #????????????? #??????####### | | ## ## #????????????? #?????????#### | | # ##+######################## #?????????# | | # #?????????#!## | | # #?????????# ## | | # === ## ################## #?????????# ## | | ### === # #????????######## #?????????#!#? | | ??# === # ##??????### #?????????# #? | | ??# ####???????#"" #??????####+## | | ### #??????????#"Y """ """ +??????# [ | | # ######??????????#"" """ """ #??????# """ " | | # #????############## """ """? #??????#*""" " | | #% #????# ? # #??????# """ " | | + ###### """ """"" # #??????# """ " | | " # + """ ""T"" + """ """ #??????# """ " | | " ## ###### """ # @""" """ #??????# !! | | " ## #????# ! #%*""" """ #??????# !! | | ## #??################ g #??????#####+# | | #### #??# # ########### | | ???# #??# ! # | | ???# #??# ]!! + % % | | ???# #??# ]! # | | ???? ??# !! # | | ???? ??# ?# || [ | | ???? ??#############?# |% " """"" | | ???? ???????????????## | """"""""" | | ???? ???????? k """ """ | | ????#???????????## % | | ?????????????????# k | | ?????????????????################+############# | | ???????????????????????????????? ????????????# | | ??????????????????????????????? ?????????????# | | ????????????????????##########????????????????# | | ????????????????????# #????????????????# | | ????????????????????# #????????????????# | | ????????????????????# #????????????????# | | ????????????????????# #?##+############# | | ????????????????????# #?# # # | | ????????????????????# ### # | | ????????????????????# + # | +----------------------------------------------------+ Best States ------------- Heat Dissipation 25 Energy Generation 10 Energy Capacity 250 Matter Stores 300 Matter Capacity 300 Sight Range 16 Robot Scan Range 14 Terrain Scan Density 10 Weapon Shielding 33 Evasion (%) 62 Item Schematics ----------------- None Robot Schematics ------------------ None Fabricated ------------ Nothing Alien Tech Used ----------------- None Achievements -------------- None Challenges ------------ None Game ------ Seed IonicBackupAmplifier Manual? 0 Play Time 00:13:27 Cumulative 17.1 hours Start 2024.09.08 @ 01:22:33 End 2024.09.08 @ 04:08:34 Sessions 3 Manual Loads 0 Difficulty Rogue Special Mode None Game No. 19 Rogue 19 Adventurer 0 Explorer 0 Win Type - Total 0 Types 0/0/0/0/0/0/0/0/0 Lore% 4 Gallery% 17 Achievement% 15 Wizard Run 0 Options --------- Layout 1 ASCII 0 Keyboard 1 Movement Arrows Keybinds 0 Fullscreen 2 Font 32/SmallcapsGlow Map View 50x35 Zoom Use 0% Tactical HUD 1 Map Filters NONE Filters NONE Steam 1 RUN: 3cc5bd37-6c7c-4499-8b0b-068f511a10b2